fUSD/lending_fUSD_20250507
["ID","MTS","AMOUNT","RATE_DAILY","PERIOD"]
[360249122,1746660640040,-394.5233027,0.00019773,2]
[360249123,1746660640053,-158.4873152,0.00019773,2]
[360249124,1746660640062,-500.0,0.00019773,2]
[360249125,1746660640072,-668.65185757,0.00019787,2]
[360249126,1746660640081,-450.0,0.00019796,2]
[360249127,1746660640091,-450.0,0.00019796,2]
[360249128,1746660640101,-450.0,0.00019796,2]
[360249129,1746660640110,-450.0,0.00019796,2]
[360249130,1746660640120,-450.0,0.00019796,2]
[360249131,1746660640129,-450.0,0.00019796,2]
[360249132,1746660640139,-450.0,0.00019796,2]
[360249133,1746660640149,-450.0,0.00019796,2]
[360249134,1746660640159,-450.0,0.00019796,2]
[360249135,1746660640169,-328.5396318,0.00019796,2]
[360249136,1746660640180,-203.7203682,0.00019796,2]
[360249137,1746660640190,-103.85119761,0.00019796,2]
[360249138,1746660640206,-346.14880239,0.00019796,2]
[360249139,1746660640215,-450.0,0.00019796,2]
[360249140,1746660640226,-450.0,0.00019796,2]
[360249141,1746660640236,-564.98,0.00019796,2]
[360249142,1746660640247,-450.0,0.00019796,2]
[360249143,1746660640257,-450.0,0.00019796,2]
[360249144,1746660640267,-450.0,0.00019796,2]
[360249145,1746660640277,-450.0,0.00019796,2]
[360249146,1746660640286,-496.59,0.00019796,2]
[360249147,1746660640295,-249.35578149,0.00019798,2]
[360249148,1746660640306,-450.0,0.00019798,2]
[360249149,1746660640316,-450.0,0.00019798,2]
[360249150,1746660640326,-450.0,0.00019798,2]
[360249151,1746660640336,-510.62,0.00019798,2]
[360249152,1746660640347,-450.0,0.00019798,2]
[360249153,1746660640357,-450.0,0.00019798,2]
[360249154,1746660640367,-484.32,0.00019798,2]
[360249155,1746660640376,-529.98,0.00019798,2]
[360249156,1746660640385,-450.0,0.00019798,2]
[360249157,1746660640399,-450.0,0.00019798,2]
[360249158,1746660640409,-450.0,0.00019798,2]
[360249159,1746660640419,-480.91,0.00019798,2]
[360249160,1746660640431,-450.0,0.00019798,2]
[360249161,1746660640440,-450.0,0.00019798,2]
[360249162,1746660640449,-450.0,0.00019798,2]
[360249163,1746660640459,-450.0,0.00019798,2]
[360249164,1746660640470,-450.0,0.00019798,2]
[360249165,1746660640480,-450.0,0.00019798,2]
[360249166,1746660640489,-450.0,0.00019798,2]
[360249167,1746660640499,-450.0,0.00019798,2]
[360249169,1746660640509,-450.0,0.00019798,2]
[360249171,1746660640518,-500.0,0.00019798,2]
[360249173,1746660640528,-450.0,0.00019798,2]
[360249175,1746660640538,-450.0,0.00019798,2]
[360249177,1746660640547,-450.0,0.00019799,2]
[360249179,1746660640557,-348.81,0.00019799,2]
[360249181,1746660640567,-450.0,0.00019799,2]
[360249182,1746660640576,-183.91,0.00019799,2]
[360249184,1746660640586,-450.0,0.00019799,2]
[360249186,1746660640596,-450.0,0.00019799,2]
[360249187,1746660640605,-450.0,0.00019799,2]
[360249188,1746660640615,-450.0,0.00019799,2]
[360249189,1746660640625,-450.0,0.00019799,2]
[360249190,1746660640635,-480.91,0.00019799,2]
[360249191,1746660640645,-480.91,0.00019799,2]
[360249192,1746660640655,-480.91,0.00019799,2]
[360249193,1746660640665,-480.91,0.00019799,2]
[360249194,1746660640674,-259.47952353,0.00019799,2]
[360249195,1746660640687,-221.43047647,0.00019799,2]
[360249196,1746660640697,-450.0,0.00019799,2]
[360249197,1746660640707,-450.0,0.00019799,2]
[360249198,1746660640719,-450.0,0.00019799,2]
[360249199,1746660640729,-450.0,0.00019799,2]
[360249200,1746660640739,-450.0,0.00019799,2]
[360249201,1746660640749,-450.0,0.00019799,2]
[360249202,1746660640759,-450.0,0.00019799,2]
[360249203,1746660640769,-450.0,0.00019799,2]
[360249204,1746660640780,-450.0,0.00019799,2]
[360249205,1746660640790,-450.0,0.00019799,2]
[360249206,1746660640800,-450.0,0.00019799,2]
[360249207,1746660640810,-450.0,0.00019799,2]
[360249208,1746660640820,-450.0,0.00019799,2]
[360249209,1746660640830,-450.0,0.00019799,2]
[360249210,1746660640841,-450.0,0.00019799,2]
[360249211,1746660640850,-450.0,0.00019799,2]
[360249212,1746660640860,-450.0,0.00019799,2]
[360249213,1746660640871,-450.0,0.00019799,2]
[360249214,1746660640880,-450.0,0.00019799,2]
[360249215,1746660640890,-450.0,0.00019799,2]
[360249216,1746660640900,-450.0,0.00019799,2]
[360249217,1746660640910,-450.0,0.00019799,2]
[360249218,1746660641131,-450.0,0.00019799,2]
[360249219,1746660641151,-450.0,0.00019799,2]
[360249220,1746660641161,-450.0,0.00019799,2]
[360249221,1746660641170,-450.0,0.00019799,2]
[360249222,1746660641180,-4543.63867388,0.00019897,2]
[360249223,1746660641192,-456.36132612,0.00019897,2]
[360249224,1746660641201,-450.0,0.00019899,2]
[360249225,1746660641210,-450.0,0.00019899,2]
[360249226,1746660641220,-242.25783501,0.00019899,2]
[360249227,1746660641229,-450.0,0.00019899,2]
[360249228,1746660641239,-589.47960656,0.00019899,2]
[360249229,1746660641248,-450.0,0.00019899,2]
[360249230,1746660641258,-304.11656586,0.00019899,2]
[360249231,1746660641270,-145.88343414,0.00019899,2]
[360249232,1746660641280,-450.0,0.00019899,2]
[360249233,1746660641289,-45.12880049,0.00019899,2]
[360249234,1746660641301,-424.87119951,0.00019899,2]
[360249235,1746660641311,-450.0,0.00019899,2]
[360249236,1746660641320,-450.0,0.00019899,2]
[360249237,1746660641331,-450.0,0.00019899,2]
[360249238,1746660641341,-450.0,0.00019899,2]
[360249239,1746660641350,-450.0,0.00019899,2]
[360249240,1746660641360,-317.47870498,0.00019899,2]
[360249241,1746660641370,-450.0,0.00019899,2]
[360249242,1746660641380,-450.0,0.00019899,2]
[360249243,1746660641390,-450.0,0.00019899,2]
[360249244,1746660641400,-450.0,0.00019899,2]
[360249245,1746660641409,-373.51004796,0.00019899,2]
[360249246,1746660641419,-509.93,0.00019899,2]
[360249247,1746660641428,-470.0,0.00019899,2]
[360249248,1746660641438,-450.0,0.00019899,2]
[360249249,1746660641447,-450.0,0.00019899,2]
[360249250,1746660641457,-150.53822765,0.00019899,2]
[360249251,1746660641641,-299.46177235,0.00019899,2]
[360249252,1746660641651,-450.0,0.00019899,2]
[360249253,1746660641661,-450.0,0.00019899,2]
[360249254,1746660641671,-450.0,0.00019899,2]
[360249255,1746660641681,-484.66,0.00019899,2]
[360249256,1746660641692,-450.0,0.00019899,2]
[360249257,1746660641702,-450.0,0.00019899,2]
[360249258,1746660641712,-450.0,0.00019899,2]
[360249259,1746660641722,-450.0,0.00019899,2]
[360249260,1746660641732,-450.0,0.00019899,2]
[360249261,1746660641742,-450.0,0.00019899,2]
[360249262,1746660641751,-172.29159797,0.00019899,2]
[360249263,1746660641768,-321.43719782,0.00019899,2]
[360249264,1746660641779,-71.17478023,0.00019899,2]
[360249267,1746660642768,-181.25380064,0.00019899,2]
[360249269,1746660642779,-450.0,0.00019899,2]
[360249271,1746660642789,-592.06,0.00019899,2]
[360249273,1746660642798,-338.81108158,0.00019899,2]
[360249275,1746660642810,-111.18891842,0.00019899,2]
[360249277,1746660642820,-391.81108158,0.00019899,2]
[360249282,1746660642852,-621.27891842,0.00019899,2]
[360249283,1746660642862,-457.04298063,0.00019899,2]
[360249284,1746660642871,-309.53,0.00019899,2]
[360249285,1746660642881,-450.0,0.00019899,2]
[360249286,1746660642890,-1328.22,0.00019899,2]
[360249287,1746660642900,-450.0,0.00019899,2]
[360249288,1746660642910,-450.0,0.00019899,2]
[360249289,1746660642920,-3182.96,0.00019899,2]
[360249290,1746660642929,-95.56922057,0.00019899,2]
[360249291,1746660642942,-354.43077943,0.00019899,2]
[360249292,1746660642951,-450.0,0.00019899,2]
[360249293,1746660642963,-154.12705526,0.00019899,2]
[360249294,1746660642972,-469.84,0.00019899,2]
[360249295,1746660642983,-202.6477267,0.00019899,2]
[360249296,1746660642993,-450.0,0.00019899,2]
[360249297,1746660643003,-450.0,0.00019899,2]
[360249298,1746660643013,-457.04298059,0.00019899,2]
[360249299,1746660643023,-457.04298059,0.00019899,2]
[360249300,1746660643033,-457.04298059,0.00019899,2]
[360249301,1746660643043,-457.04298059,0.00019899,2]
[360249302,1746660643053,-457.04298059,0.000199,2]
[360249303,1746660643062,-457.04298059,0.000199,2]
[360249304,1746660643072,-457.04298059,0.000199,2]
[360249305,1746660643082,-457.04298059,0.000199,2]
[360249306,1746660643091,-1485.2197927,0.000199,2]
[360249307,1746660643101,-465.92757192,0.000199,2]
[360249308,1746660643110,-188.51090908,0.000199,2]
[360249309,1746660643119,-388.20259177,0.000199,2]
[360249310,1746660643130,-457.04298059,0.000199,2]
[360249311,1746660643140,-382.67165322,0.000199,2]
[360249312,1746660643149,-308.25117078,0.000199,2]
[360249313,1746660643159,-412.58678637,0.00019972,2]
[360249314,1746660643168,-450.0,0.00019972,2]
[360249315,1746660643178,-450.0,0.00019972,2]
[360249316,1746660643188,-450.0,0.00019972,2]
[360249317,1746660643197,-450.0,0.00019972,2]
[360249318,1746660643207,-450.0,0.00019972,2]
[360249319,1746660643216,-551.16,0.00019972,2]
[360249320,1746660643226,-450.0,0.00019972,2]
[360249321,1746660643236,-450.0,0.00019972,2]
[360249322,1746660643246,-500.0,0.00019972,2]
[360249323,1746660643256,-450.0,0.00019972,2]
[360249324,1746660643266,-277.54,0.00019972,2]
[360249325,1746660643276,-313.86694118,0.00019973,2]
[360249326,1746660643285,-500.0,0.00019973,2]
[360249328,1746660643295,-500.0,0.00019973,2]
[360249330,1746660643305,-503.14930803,0.00019973,2]
[360249332,1746660643315,-500.0,0.00019973,2]
[360249334,1746660643324,-500.0,0.00019973,2]
[360249336,1746660643335,-500.0,0.00019973,2]
[360249337,1746660643344,-500.0,0.00019973,2]
[360249338,1746660643355,-24.04506086,0.00019973,2]
[360249339,1746660643367,-475.95493914,0.00019973,2]
[360249340,1746660643376,-303.05890536,0.00019984,2]
[360249341,1746660643396,-735.62109464,0.00019984,2]
[360249342,1746660643407,-480.91,0.00019985,2]
[360249343,1746660643419,-450.0,0.00019985,2]
[360249344,1746660643429,-450.0,0.00019985,2]
[360249345,1746660643439,-450.0,0.00019985,2]
[360249346,1746660643452,-450.0,0.00019985,2]
[360249347,1746660643462,-450.0,0.00019985,2]
[360249348,1746660643472,-450.0,0.00019985,2]
[360249349,1746660643482,-450.0,0.00019985,2]
[360249350,1746660643492,-173.46890536,0.00019985,2]
[360249353,1746660645753,-276.53109464,0.00019985,2]
[360249354,1746660645764,-223.46890536,0.00019985,2]
[360249355,1746660645915,-226.53109464,0.00019985,2]
[360249356,1746660645925,-450.0,0.00019985,2]
[360249357,1746660645935,-450.0,0.00019985,2]
[360249358,1746660645945,-740.82,0.00019985,2]
[360249359,1746660645955,-450.0,0.00019985,2]
[360249360,1746660645965,-450.0,0.00019985,2]
[360249361,1746660645975,-679.67,0.00019985,2]
[360249362,1746660645985,-450.0,0.00019985,2]
[360249363,1746660645994,-450.0,0.00019985,2]
[360249364,1746660646004,-450.0,0.00019985,2]
[360249365,1746660646014,-450.0,0.00019985,2]
[360249366,1746660646023,-450.0,0.00019985,2]
[360249367,1746660646033,-1152.4761591,0.00019986,2]
[360249368,1746660646042,-2793.3491662,0.00019986,2]
[360249369,1746660646051,-91179.051798,0.00019986,2]
[360249370,1746660646062,-450.0,0.00019994,2]
[360249371,1746660646071,-480.91,0.00019994,2]
[360249372,1746660646080,-450.0,0.00019994,2]
[360249373,1746660646090,-450.0,0.00019994,2]
[360249374,1746660646112,-450.0,0.00019994,2]
[360249375,1746660646122,-547.65532431,0.00019997,2]
[360249376,1746660646132,-450.0,0.00019997,2]
[360249377,1746660646142,-470.0,0.00019997,2]
[360249378,1746660646152,-450.0,0.00019997,2]
[360249379,1746660646173,-450.0,0.00019997,2]
[360249380,1746660646187,-450.0,0.00019997,2]
[360249381,1746660646204,-450.0,0.00019997,2]
[360249382,1746660646219,-504.03260027,0.00019997,2]
[360249383,1746660646233,-522.98812998,0.00019997,2]
[360249384,1746660646247,-307.80985581,0.00019997,2]
[360249385,1746660646262,-142.19014419,0.00019997,2]
[360249386,1746660646273,-450.0,0.00019997,2]
[360249387,1746660646287,-147.14524528,0.00019997,2]
[360249388,1746660646305,-302.85475472,0.00019997,2]
[360249389,1746660646317,-450.0,0.00019997,2]
[360249390,1746660646330,-32.12674528,0.00019997,2]
[360249391,1746660646346,-417.87325472,0.00019997,2]
[360249392,1746660646359,-450.0,0.00019997,2]
[360249393,1746660646373,-450.0,0.00019997,2]
[360249394,1746660646386,-96.28399328,0.00019997,2]
[360249396,1746660646405,-353.71600672,0.00019997,2]
[360249397,1746660646419,-191.43638828,0.00019997,2]
[360249398,1746660646435,-378.08313012,0.00019997,2]
[360249399,1746660646447,-450.0,0.00019997,2]
[360249400,1746660646457,-197.03968388,0.00019997,2]
[360249401,1746660646471,-252.96031612,0.00019997,2]
[360249402,1746660646484,-219.99868393,0.00019997,2]
[360249403,1746660646499,-230.00131607,0.00019997,2]
[360249404,1746660646517,-450.0,0.00019997,2]
[360249405,1746660646529,-446.65518393,0.00019997,2]
[360249406,1746660646545,-43.34481607,0.00019997,2]
[360249407,1746660646556,-490.0,0.00019997,2]
[360249408,1746660646569,-420.0,0.00019997,2]
[360249409,1746660646581,-490.0,0.00019997,2]
[360249410,1746660646594,-450.0,0.00019997,2]
[360249411,1746660646607,-566.0979337,0.00019997,2]
[360249412,1746660646620,-479.99986811,0.00019997,2]
[360249413,1746660646633,-450.0,0.00019997,2]
[360249414,1746660646645,-450.0,0.00019997,2]
[360249415,1746660646659,-470.0,0.00019997,2]
[360249416,1746660646672,-467.73,0.00019997,2]
[360249417,1746660646685,-450.0,0.00019997,2]
[360249418,1746660646699,-450.0,0.00019997,2]
[360249419,1746660646713,-470.0,0.00019997,2]
[360249420,1746660646727,-450.0,0.00019997,2]
[360249421,1746660646739,-450.0,0.00019997,2]
[360249422,1746660646752,-450.0,0.00019997,2]
[360249423,1746660646764,-268.26422272,0.00019997,2]
[360249424,1746660646777,-376.44833196,0.00019997,2]
[360249425,1746660646789,-450.0,0.00019997,2]
[360249426,1746660646805,-450.0,0.00019997,2]
[360249427,1746660646821,-450.0,0.00019997,2]
[360249428,1746660646835,-450.0,0.00019997,2]
[360249429,1746660646848,-450.0,0.00019997,2]
[360249430,1746660646863,-470.0,0.00019997,2]
[360249431,1746660646876,-450.0,0.00019997,2]
[360249432,1746660646886,-450.0,0.00019997,2]
[360249433,1746660646896,-460.02034288,0.00019997,2]
[360249434,1746660646907,-150.40240299,0.00019997,2]
[360249435,1746660646925,-162.42538938,0.00019997,2]
[360249436,1746660646937,-450.0,0.00019997,2]
[360249437,1746660646951,-450.0,0.00019997,2]
[360249438,1746660646965,-450.0,0.00019997,2]
[360249439,1746660646980,-510.0,0.00019997,2]
[360249440,1746660646994,-450.0,0.00019997,2]
[360249441,1746660647005,-262.28551055,0.00019997,2]
[360249442,1746660647017,-450.0,0.00019997,2]
[360249443,1746660647028,-450.0,0.00019997,2]
[360249444,1746660647039,-450.0,0.00019997,2]
[360249445,1746660647050,-470.0,0.00019997,2]
[360249446,1746660647062,-480.91,0.00019997,2]
[360249447,1746660647075,-450.0,0.00019997,2]
[360249448,1746660647091,-461.4,0.00019997,2]
[360249449,1746660647104,-450.0,0.00019997,2]
[360249450,1746660647116,-450.0,0.00019997,2]
[360249451,1746660647127,-450.0,0.00019997,2]
[360249452,1746660647137,-450.0,0.00019997,2]
[360249453,1746660647148,-450.0,0.00019997,2]
[360249454,1746660647158,-470.0,0.00019997,2]
[360249455,1746660647169,-470.0,0.00019997,2]
[360249456,1746660647180,-0.37758164,0.00019997,2]
[360249459,1746660873748,500.0,0.0003013,120]
[360249460,1746660885868,500.0,0.0003013,120]
[360249461,1746660902962,500.0,0.0003013,120]
[360249462,1746660911794,500.0,0.0003013,120]
[360249463,1746660919602,500.0,0.0003013,120]
[360249464,1746660927282,500.0,0.0003013,120]
[360249465,1746660935738,500.0,0.0003013,120]
[360249466,1746660942613,580.0,0.0003013,120]
[360249467,1746660951649,500.0,0.0003013,120]
[360249468,1746660960461,500.0,0.0003013,120]
[360249469,1746660985193,1000.0,0.00018971,2]
[360249476,1746661016593,183.02,0.00018966,2]
[360249477,1746661016812,183.02,0.00028449,120]
[360249495,1746661035355,150.0,0.0003,30]
[360249496,1746661078246,500.0,0.0003013,120]
[360249497,1746661090961,500.0,0.0003013,120]
[360249498,1746661115804,500.0,0.0003013,120]
[360249570,1746661319403,156.13,0.00018921,2]
[360249602,1746661414655,600.0,0.0003,30]
[360249603,1746661420455,250.0,0.00017,2]
[360249604,1746661421548,300.0,0.00019,2]
[360249606,1746661645223,150.0,0.00018986,7]
[360249607,1746661688224,320.8,0.00017028,2]
[360249608,1746661688424,320.8,0.00019291,2]
[360249620,1746661831900,-178.72,0.00019522,2]
[360249621,1746661831910,-200.0,0.00019545,2]
[360249622,1746661831921,-200.0,0.00019672,2]
[360249623,1746661831931,-177.4,0.000197,2]
[360249624,1746661831941,-464.31798818,0.0001977,2]
[360249625,1746661831952,-500.0,0.00019773,2]
[360249626,1746661831962,-500.0,0.00019773,2]
[360249627,1746661831972,-1200.0,0.00019782,2]
[360249628,1746661831982,-300.0,0.00019782,2]
[360249629,1746661831992,-300.0,0.00019782,2]
[360249630,1746661832003,-42774.08601924,0.00019783,2]
[360249631,1746661832012,-22945.67066114,0.00019786,2]
[360249632,1746661832022,-246.80186765,0.00019789,2]
[360249633,1746661832032,-4952.76251905,0.00019813,2]
[360249634,1746661832042,-35033.57445364,0.00019817,2]
[360249635,1746661832057,-738.8269785,0.00019817,2]
[360249636,1746661832073,-629.15700853,0.00019817,2]
[360249637,1746661832085,-2007.11221684,0.00019817,2]
[360249671,1746661837936,-4365.41536173,0.00019817,2]
[360249672,1746661837947,-561.25502189,0.00019825,2]
[360249673,1746661837960,-200.0,0.00019827,2]
[360249674,1746661837969,-246.80186765,0.0001983,2]
[360249675,1746661837980,-5158.91754999,0.00019834,2]
[360249676,1746661837995,-1070.987535,0.00019841,2]
[360249677,1746661838005,-4952.76251905,0.00019847,2]
[360249678,1746661838015,-183.230895,0.00019873,2]
[360249679,1746661838027,-316.769105,0.00019873,2]
[360249680,1746661838037,-207.4,0.00019874,2]
[360249681,1746661838047,-33.330895,0.00019874,2]
[360249682,1746661838062,-1037.65664,0.00019874,2]
[360249683,1746661838072,-561.25502189,0.00019876,2]
[360249684,1746661838082,-22945.67066114,0.00019877,2]
[360249685,1746661838092,-476.39830728,0.00019878,2]
[360249686,1746661838102,-285.63,0.0001988,2]
[360249687,1746661838112,-6000.0,0.00019885,2]
[360249688,1746661838123,-758.6457297,0.00019885,2]
[360249689,1746661838133,-6143.67039379,0.00019886,2]
[360249690,1746661838145,-476.43552863,0.00019886,2]
[360249691,1746661838157,-2446.53517758,0.00019886,2]
[360249692,1746661838167,-1000.0,0.00019886,2]
[360249693,1746661838177,-207.70024751,0.00019886,2]
[360249694,1746661838187,-1659.5285,0.00019886,2]
[360249695,1746661838198,-1000.0,0.00019886,2]
[360249696,1746661838207,-758.64572966,0.00019887,2]
[360249697,1746661838218,-758.64572966,0.00019888,2]
[360249698,1746661838228,-500.0,0.00019889,2]
[360249699,1746661838238,-500.0,0.00019889,2]
[360249700,1746661838248,-599.8551152,0.00019889,2]
[360249701,1746661838258,-500.0,0.00019889,2]
[360249702,1746661838270,-500.0,0.00019889,2]
[360249703,1746661838280,-500.0,0.00019889,2]
[360249704,1746661838290,-500.0,0.00019889,2]
[360249706,1746661838300,-500.0,0.00019889,2]
[360249708,1746661838310,-500.0,0.00019889,2]
[360249709,1746661838319,-500.0,0.00019889,2]
[360249710,1746661838329,-500.0,0.00019889,2]
[360249711,1746661838339,-500.0,0.00019889,2]
[360249712,1746661838348,-500.0,0.00019889,2]
[360249714,1746661838359,-500.0,0.00019889,2]
[360249715,1746661838371,-500.0,0.00019889,2]
[360249716,1746661838381,-500.0,0.00019889,2]
[360249717,1746661838391,-500.0,0.00019889,2]
[360249719,1746661838401,-500.0,0.00019889,2]
[360249720,1746661838411,-500.0,0.00019889,2]
[360249721,1746661838422,-500.0,0.00019889,2]
[360249722,1746661838437,-500.0,0.00019889,2]
[360249723,1746661838448,-500.0,0.00019889,2]
[360249724,1746661838460,-636.96386875,0.00019889,2]
[360249725,1746661838470,-500.0,0.00019889,2]
[360249726,1746661838482,-500.0,0.00019889,2]
[360249727,1746661838493,-500.0,0.00019889,2]
[360249728,1746661838503,-208.61311696,0.00019889,2]
[360249729,1746661838514,-500.0,0.00019889,2]
[360249730,1746661838524,-500.0,0.00019889,2]
[360249731,1746661838535,-500.0,0.00019889,2]
[360249732,1746661838547,-500.0,0.00019889,2]
[360249733,1746661838559,-500.0,0.00019889,2]
[360249734,1746661838570,-500.0,0.00019889,2]
[360249735,1746661838582,-500.0,0.00019889,2]
[360249736,1746661838594,-500.0,0.00019889,2]
[360249737,1746661838604,-500.0,0.00019889,2]
[360249738,1746661838616,-500.0,0.00019889,2]
[360249739,1746661838627,-500.0,0.00019889,2]
[360249740,1746661838637,-500.0,0.00019889,2]
[360249741,1746661838647,-500.0,0.00019889,2]
[360249742,1746661838658,-500.0,0.00019889,2]
[360249743,1746661838667,-500.0,0.00019889,2]
[360249744,1746661838677,-500.0,0.00019889,2]
[360249745,1746661838686,-500.0,0.00019889,2]
[360249746,1746661838696,-500.0,0.00019889,2]
[360249747,1746661838706,-500.0,0.00019889,2]
[360249748,1746661838718,-500.0,0.00019889,2]
[360249749,1746661838732,-500.0,0.00019889,2]
[360249750,1746661838743,-500.0,0.00019889,2]
[360249751,1746661838754,-500.0,0.00019889,2]
[360249752,1746661838769,-473.45782555,0.00019889,2]
[360249753,1746661838779,-500.0,0.00019889,2]
[360249754,1746661838791,-500.0,0.00019889,2]
[360249755,1746661838802,-462.58095709,0.00019889,2]
[360249795,1746661840225,-37.41904291,0.00019889,2]
[360249797,1746661840237,-500.0,0.00019889,2]
[360249799,1746661840247,-500.0,0.00019889,2]
[360249801,1746661840257,-500.0,0.00019889,2]
[360249804,1746661840268,-500.0,0.00019889,2]
[360249806,1746661840279,-500.0,0.00019889,2]
[360249808,1746661840288,-500.0,0.00019889,2]
[360249810,1746661840299,-500.0,0.00019889,2]
[360249812,1746661840309,-500.0,0.00019889,2]
[360249814,1746661840318,-570.7737632,0.00019889,2]
[360249816,1746661840327,-500.0,0.00019889,2]
[360249818,1746661840337,-500.0,0.00019889,2]
[360249820,1746661840347,-500.0,0.00019889,2]
[360249822,1746661840357,-500.0,0.00019889,2]
[360249824,1746661840366,-500.0,0.00019889,2]
[360249826,1746661840377,-500.0,0.00019889,2]
[360249828,1746661840387,-500.0,0.00019889,2]
[360249830,1746661840398,-500.0,0.00019889,2]
[360249833,1746661840408,-500.0,0.00019889,2]
[360249834,1746661840418,-500.0,0.00019889,2]
[360249837,1746661840427,-500.0,0.00019889,2]
[360249839,1746661840437,-500.0,0.00019889,2]
[360249841,1746661840447,-500.0,0.00019889,2]
[360249843,1746661840456,-620.8613117,0.00019889,2]
[360249845,1746661840466,-500.0,0.00019889,2]
[360249847,1746661840476,-500.0,0.00019889,2]
[360249849,1746661840486,-500.0,0.00019889,2]
[360249851,1746661840497,-500.0,0.00019889,2]
[360249853,1746661840507,-500.0,0.00019889,2]
[360249855,1746661840516,-500.0,0.00019889,2]
[360249857,1746661840526,-500.0,0.00019889,2]
[360249859,1746661840535,-500.0,0.00019889,2]
[360249862,1746661840546,-500.0,0.00019889,2]
[360249864,1746661840557,-500.0,0.00019889,2]
[360249866,1746661840566,-500.0,0.00019889,2]
[360249868,1746661840577,-500.0,0.00019889,2]
[360249870,1746661840586,-500.0,0.00019889,2]
[360249872,1746661840596,-500.0,0.00019889,2]
[360249874,1746661840605,-500.0,0.00019889,2]
[360249876,1746661840616,-500.0,0.00019889,2]
[360249878,1746661840632,-500.0,0.00019889,2]
[360249880,1746661840641,-500.0,0.00019889,2]
[360249882,1746661840651,-500.0,0.00019889,2]
[360249884,1746661840661,-500.0,0.00019889,2]
[360249886,1746661840671,-547.34578255,0.00019889,2]
[360249888,1746661840681,-500.0,0.00019889,2]
[360249891,1746661840690,-500.0,0.00019889,2]
[360249893,1746661840700,-500.0,0.00019889,2]
[360249895,1746661840711,-500.0,0.00019889,2]
[360249897,1746661840721,-500.0,0.00019889,2]
[360249899,1746661840731,-500.0,0.00019889,2]
[360249901,1746661840741,-500.0,0.00019889,2]
[360249903,1746661840752,-500.0,0.00019889,2]
[360249904,1746661840765,-500.0,0.00019889,2]
[360249905,1746661840775,-400.0,0.00019889,2]
[360249909,1746661840786,-500.0,0.00019889,2]
[360249912,1746661840796,-500.0,0.00019889,2]
[360249915,1746661840807,-500.0,0.00019889,2]
[360249917,1746661840817,-24759.53645241,0.0001989,2]
[360249920,1746661840827,-758.64572966,0.0001989,2]
[360249924,1746661840839,-5158.91754999,0.0001989,2]
[360249926,1746661840849,-758.64572966,0.00019892,2]
[360249928,1746661840858,-758.64572966,0.00019893,2]
[360249930,1746661840869,-758.64572966,0.00019895,2]
[360249932,1746661840879,-372.85764421,0.00019896,2]
[360249934,1746661840890,-758.64572966,0.00019897,2]
[360249938,1746661840900,-944.51,0.00019897,2]
[360249940,1746661840909,-758.64572966,0.00019898,2]
[360249942,1746661840919,-3729.2588,0.00019899,2]
[360249944,1746661840929,-1247.336645,0.00019899,2]